bitfinex/quotes_ETHUSD_20250112
["timestamp","ask_amount","ask_price","bid_price","bid_amount"]
[1736647593399,0.208,3289.8,3289.2,5.37]
[1736647593881,0.208,3289.8,3289.3,0.06257326]
[1736647594202,0.208,3289.8,3289.2,5.37]
[1736647594409,0.208,3289.8,3289.4,0.0624982]
[1736647594610,0.208,3289.8,3289.3,0.06257326]
[1736647594767,0.208,3289.8,3289.5,0.06242315]
[1736647594961,0.208,3289.8,3289.2,7.49817]
[1736647594962,0.208,3289.8,3289.4,0.0624982]
[1736647595165,0.208,3289.8,3289.6,0.0623481]
[1736647595379,0.208,3289.8,3289.5,0.06242315]
[1736647595604,0.208,3289.8,3289.7,0.06227305]
[1736647595810,0.208,3289.8,3289.6,0.0623481]
[1736647596009,0.208,3289.8,3289.7,0.06227305]
[1736647596371,1.0307,3289.8,3289.2,5.37]
[1736647596567,1.0307,3289.8,3289.7,0.06229494]
[1736647596785,1.346542,3289.8,3289.2,5.37]
[1736647596974,1.346542,3289.8,3289.7,0.06229494]
[1736647597175,1.346542,3289.8,3289.2,5.37]
[1736647597672,1.346542,3289.8,3289.3,0.06259515]
[1736647598019,1.346542,3289.8,3289.2,5.37]
[1736647598309,1.346542,3289.8,3289.3,0.06259515]
[1736647598517,1.346542,3289.8,3289.2,5.37]
[1736647598738,1.346542,3289.8,3289.3,0.06259515]
[1736647598946,1.346542,3289.8,3289.2,5.37]
[1736647599094,1.346542,3289.8,3289.3,0.06259515]
[1736647599298,1.346542,3289.8,3289.2,5.37]
[1736647599610,1.0307,3289.8,3289.3,0.06259515]
[1736647599988,1.0307,3289.8,3289.2,5.37]
[1736647600195,1.0307,3289.8,3289.4,0.06252009]
[1736647600592,1.0307,3289.8,3289.2,5.37]
[1736647600793,1.0307,3289.8,3289.5,0.06244504]
[1736647601011,1.0307,3289.8,3289.2,5.37]
[1736647601509,1.0307,3289.8,3289.3,0.06266955]
[1736647601711,1.0307,3289.8,3289.3,0.83709996]
[1736647601949,1.0307,3289.8,3289.4,0.06259449]
[1736647602301,1.0307,3289.8,3289.2,5.37]
[1736647602614,1.0307,3289.8,3289.3,0.06269582]
[1736647603016,1.0307,3289.8,3289.2,5.37]
[1736647603328,1.0307,3289.8,3289.3,0.06269582]
[1736647603541,1.0307,3289.8,3289.2,5.37]
[1736647603741,1.0307,3289.8,3289.3,0.06269582]
[1736647604053,1.0307,3289.8,3289.2,5.37]
[1736647604228,1.0307,3289.8,3289.4,0.06262076]
[1736647604431,1.0307,3289.8,3289.3,0.06269582]
[1736647604616,0.8045,3290.2,3289.5,0.8905457]
[1736647604815,0.208,3290.1,3289.5,0.828]
[1736647605010,0.208,3290.1,3289.6,0.06246627]
[1736647606037,2.3356,3290.1,3289.6,0.06246627]
[1736647606352,0.8045,3289.9,3289.2,6.198]
[1736647606561,0.8045,3289.9,3289.3,0.06268706]
[1736647606853,1.23851015,3289.9,3289.3,0.06268706]
[1736647607652,0.208,3289.8,3289.3,0.06268706]
[1736647607856,2.0044315,3289.7,3289.3,0.06268706]
[1736647608161,4.1323015,3289.7,3289.4,0.062612]
[1736647608305,4.1323015,3289.7,3289.2,5.37]
[1736647608500,0.43403015,3289.6,3289.3,0.06278777]
[1736647608705,0.43403015,3289.6,3289.2,5.37]
[1736647608916,0.43403015,3289.6,3289.3,0.06278777]
[1736647609113,0.43403015,3289.6,3289.2,5.37]
[1736647609401,0.43403015,3289.6,3289.3,0.06278777]
[1736647609796,0.43403015,3289.6,3289.2,5.37]
[1736647610049,0.43403015,3289.6,3289.4,0.06271271]
[1736647610252,0.43403015,3289.6,3289.3,0.06278777]
[1736647610417,2.93237,3289.7,3289.5,0.06263765]
[1736647610755,2.93237,3289.7,3288.7,2.95644]
[1736647610935,2.93237,3289.7,3288.8,0.0632113]
[1736647611543,2.12792,3289.6,3288.8,0.0632113]
[1736647612051,0.8045,3289.5,3288.8,0.0632113]
[1736647612233,2.1281,3289.4,3288.8,0.0632113]
[1736647612555,0.8045,3289.2,3288.9,0.0632851]
[1736647612755,0.8045,3289.2,3288.5,5.37]
[1736647612917,0.8045,3289.2,3288.6,0.06351036]
[1736647613755,0.8045,3289.2,3288.4,0.828]
[1736647613911,0.8045,3289.2,3288.5,0.06358546]
[1736647614108,1.119043,3289.2,3288.5,0.06358546]
[1736647615849,3.247223,3289.2,3288.5,0.06358546]
[1736647627401,1.119043,3289.2,3288.5,0.06358546]
[1736647627610,2.12835,3289.0,3288.5,0.06358546]
[1736647627925,0.758,3288.8,3288.5,0.06358546]
[1736647631427,1.18750706,3288.8,3288.5,0.06358546]
[1736647633326,0.208,3288.9,3288.5,0.06358546]
[1736647647931,1.20069055,3288.8,3288.5,0.06358546]
[1736647648162,3.32913055,3288.8,3288.2,0.8049]
[1736647648474,3.32913055,3288.8,3288.3,0.06405103]
[1736647648980,2.33637,3288.9,3288.3,0.06405103]
[1736647649133,3.06722606,3288.9,3288.3,0.06405103]
[1736647650582,9.14882606,3288.9,3288.3,0.06405103]
[1736647654373,7.02045606,3288.9,3288.4,0.8049]
[1736647654703,6.2896,3288.9,3288.4,0.8049]
[1736647656900,0.208,3288.8,3288.4,0.8049]
[1736647657702,0.208,3288.8,3288.5,0.06423373]
[1736647662220,0.208,3288.8,3288.4,0.8049]
[1736647665239,2.33643,3288.8,3288.4,0.8049]
[1736647665391,0.921673,3288.7,3288.4,0.8049]
[1736647667131,0.921673,3288.7,3288.1,0.8269]
[1736647667634,0.921673,3288.7,3288.2,0.06449408]
[1736647667831,7.003273,3288.7,3288.2,0.06449408]
[1736647668336,2.12857,3288.6,3288.2,0.06449408]
[1736647668538,1.03325335,3288.5,3288.2,0.06449408]
[1736647669889,7.11485335,3288.5,3288.2,0.06449408]
[1736647671439,7.91355335,3288.5,3288.2,0.06449408]
[1736647671849,10.04218335,3288.5,3288.2,0.06449408]
[1736647672545,10.04218335,3288.5,3287.9,0.8269]
[1736647672707,10.04218335,3288.5,3288.3,0.06444964]
[1736647673038,1.00421834,3288.4,3287.9,0.8269]
[1736647673238,6.0816,3288.5,3287.9,0.8269]
[1736647678770,6.0816,3288.5,3288.0,0.06467499]
[1736647681613,6.0816,3288.5,3288.1,0.7748]
[1736647681747,6.0816,3288.5,3288.2,0.06470438]
[1736647682077,6.0816,3288.5,3288.1,0.7748]
[1736647682381,6.0816,3288.5,3288.2,0.06470438]
[1736647682834,6.0816,3288.5,3288.1,0.7748]
[1736647683035,6.0816,3288.5,3288.2,0.06468247]
[1736647683235,6.902611,3288.5,3288.1,0.7748]
[1736647683665,6.902611,3288.5,3288.2,0.06468247]
[1736647683853,0.208,3288.4,3288.2,0.06468247]
[1736647684051,6.2896,3288.4,3288.2,0.06468247]
[1736647684287,6.2896,3288.4,3288.1,0.7748]
[1736647684585,6.2896,3288.4,3287.7,2.12912]
[1736647684758,0.8257,3288.3,3288.2,0.06468247]
[1736647685081,0.8257,3288.3,3287.7,2.90392]
[1736647685289,6.2896,3288.4,3287.7,2.90392]
[1736647685636,6.2896,3288.4,3287.8,0.06498296]
[1736647685876,6.2896,3288.4,3287.9,0.7748]
[1736647686233,6.2896,3288.4,3288.0,0.06483271]
[1736647690399,7.131418,3288.4,3288.0,0.06483271]
[1736647692256,9.260138,3288.4,3288.0,0.06483271]
[1736647692805,2.95452,3288.2,3288.0,0.06483271]
[1736647693037,9.03612,3288.2,3287.6,0.7748]
[1736647693244,9.03612,3288.2,3287.7,0.06508877]
[1736647693391,1.02368106,3288.1,3287.7,0.06508877]
[1736647693590,7.10528106,3288.1,3287.7,0.06508877]
[1736647694020,0.8257,3287.8,3287.7,0.06508877]
[1736647694236,6.0816,3287.8,3287.3,0.7748]
[1736647694532,6.0816,3287.8,3287.4,0.06345861]
[1736647694903,6.0816,3287.8,3287.3,0.7748]
[1736647695111,6.0816,3287.8,3287.5,0.06338346]
[1736647695499,6.0816,3287.8,3287.3,0.7748]
[1736647696143,6.0816,3287.8,3287.4,0.06345861]
[1736647696498,6.0816,3287.8,3287.3,0.7748]
[1736647696717,6.0816,3287.8,3287.5,0.06338346]
[1736647696948,1.43386,3287.7,3287.4,0.06345861]
[1736647697117,0.208,3287.6,3287.1,0.7748]
[1736647698560,0.208,3287.6,3287.1,2.90432]
[1736647699873,0.208,3287.6,3287.1,0.7748]
[1736647701073,0.208,3287.6,3287.1,2.90431]
[1736647701360,0.208,3287.6,3287.3,0.8218]
[1736647702040,6.0816,3287.8,3287.5,1.20069055]
[1736647702351,6.0816,3287.8,3287.7,2.12914]
[1736647702562,6.0816,3287.8,3287.7,3.32983055]
[1736647703413,6.0816,3287.8,3287.7,4.16663055]
[1736647703732,6.0816,3287.8,3287.7,5.15374985]
[1736647703930,6.0816,3287.8,3287.7,5.12333508]
[1736647705341,6.0816,3287.8,3287.7,3.92264453]
[1736647708643,6.0816,3287.8,3287.7,3.98554469]
[1736647709027,6.0816,3287.8,3287.7,9.35554469]
[1736647718899,6.0816,3287.8,3287.7,9.30554469]
[1736647725895,6.0816,3287.8,3287.7,9.25554469]
[1736647727253,6.0816,3287.8,3287.7,10.45627293]
[1736647728803,6.0816,3287.8,3287.7,8.29884016]
[1736647733602,6.0816,3287.8,3287.7,8.28384016]
[1736647733942,6.0816,3287.8,3287.7,7.46204016]
[1736647734506,6.0816,3287.8,3287.7,5.43290016]
[1736647740218,6.8898,3287.8,3287.7,5.43290016]
[1736647741756,7.57878,3287.8,3287.7,5.43290016]
[1736647742053,6.77058,3287.8,3287.7,5.43290016]
[1736647744372,6.0816,3287.8,3287.7,5.43290016]
[1736647744866,6.0816,3287.8,3287.7,0.06290016]
[1736647745156,6.0816,3287.8,3287.4,8.70003824]
[1736647745456,6.0816,3287.8,3287.7,2.19121431]
[1736647745608,6.0816,3287.8,3287.7,2.17455314]
[1736647745815,6.0816,3287.8,3287.7,2.65507774]
[1736647746041,6.0816,3287.8,3287.7,2.6246646]
[1736647746251,6.0816,3287.8,3287.7,2.20637646]
[1736647748460,6.0816,3287.8,3287.7,0.06223646]
[1736647748616,6.0816,3287.8,3287.4,5.37]
[1736647749048,6.0816,3287.8,3287.5,0.0622991]
[1736647750673,0.8082,3287.7,3287.5,0.0622991]
[1736647750842,0.68898,3287.6,3287.5,0.0622991]
[1736647751045,0.68898,3287.6,3287.1,5.37]
[1736647751425,0.68898,3287.6,3287.2,0.06252456]
[1736647751873,0.8082,3287.4,3287.2,0.06252456]
[1736647752081,0.8082,3287.4,3286.9,5.37]
[1736647752463,0.8082,3287.4,3287.0,0.06282826]
[1736647753142,0.978718,3287.4,3287.0,0.06282826]
[1736647753555,7.060318,3287.4,3287.0,0.06282826]
[1736647753747,0.8082,3287.3,3287.0,0.06282826]
[1736647754082,6.8898,3287.3,3287.0,0.06282826]
[1736647755875,6.8898,3287.3,3286.7,2.12978]
[1736647756067,7.6166318,3287.3,3286.8,0.0629786]
[1736647756270,7.6166318,3287.3,3286.7,2.12978]
[1736647756468,7.6166318,3287.3,3286.8,0.0629786]
[1736647756639,7.6166318,3287.3,3286.7,2.12978]
[1736647756854,7.6166318,3287.3,3286.8,0.0629786]
[1736647757054,0.77871498,3287.2,3286.7,2.12978]
[1736647757255,6.86031498,3287.2,3286.8,0.06319337]
[1736647757476,6.86031498,3287.2,3286.7,2.12978]
[1736647757670,6.86031498,3287.2,3286.8,0.06319337]
[1736647757995,6.86031498,3287.2,3286.7,2.12978]
[1736647758194,6.86031498,3287.2,3286.9,0.06311819]
[1736647758396,0.7668515,3287.1,3286.8,0.06319337]
[1736647758605,0.7668515,3287.1,3287.0,0.06304302]
[1736647759104,0.7668515,3287.1,3286.7,2.12978]
[1736647759305,0.7668515,3287.1,3286.8,0.06319337]
[1736647759606,0.7668515,3287.1,3286.6,5.37]
[1736647759747,0.68484515,3287.0,3286.9,0.06311819]
[1736647759950,0.68484515,3287.0,3286.5,3.33062824]
[1736647760496,0.68484515,3287.0,3286.6,0.06334373]
[1736647761107,6.0816,3287.2,3286.8,0.8163]
[1736647761398,6.0816,3287.2,3286.9,0.06311819]
[1736647762681,6.0816,3287.2,3286.9,2.19277819]
[1736647764397,6.0816,3287.2,3286.9,0.06311819]
[1736647764699,6.0816,3287.2,3286.5,0.8163]
[1736647764909,0.68898,3287.1,3286.6,3.39390197]
[1736647765202,6.0816,3287.2,3286.7,2.12973]
[1736647765402,6.2896,3287.2,3286.8,1.20072824]
[1736647765705,6.2896,3287.2,3286.8,0.06319337]
[1736647766005,6.2896,3287.2,3286.7,5.40042416]
[1736647766200,6.2896,3287.2,3286.9,0.06311819]
[1736647766504,6.2896,3287.2,3287.0,0.06304302]
[1736647766702,6.2896,3287.2,3286.8,2.12967]
[1736647766855,6.2896,3287.2,3286.9,0.06311819]
[1736647768306,7.0164318,3287.2,3286.9,0.06311819]
[1736647771580,0.782,3287.1,3286.7,5.37]
[1736647771762,0.782,3287.1,3287.0,0.06318329]
[1736647771963,0.782,3287.1,3286.5,2.12986]
[1736647772613,0.782,3287.1,3286.6,0.06380838]
[1736647772768,0.77984318,3287.0,3286.6,0.06380838]
[1736647776235,0.782,3287.1,3286.8,1.20072824]
[1736647776550,6.2896,3287.2,3286.9,0.063596]
[1736647780960,0.7906,3287.1,3286.9,0.063596]
[1736647781342,0.7906,3287.1,3286.6,2.12984]
[1736647781540,0.7906,3287.1,3287.0,0.06346385]
[1736647781723,1.49862,3287.1,3286.6,2.12984]
[1736647781928,1.49862,3287.1,3286.7,0.06370691]
[1736647786479,6.2896,3287.2,3286.8,2.12972]
[1736647786832,6.2896,3287.2,3286.9,0.06357847]
[1736647787560,6.2896,3287.2,3286.9,2.19321847]
[1736647789461,6.2896,3287.2,3286.9,2.97701847]
[1736647791865,6.2896,3287.2,3286.9,0.84737847]
[1736647792582,6.2896,3287.2,3286.9,0.06357847]
[1736647792790,0.62896,3287.1,3286.9,0.06357847]
[1736647792940,6.2896,3287.2,3286.9,0.06357847]
[1736647795568,0.8239,3287.1,3286.9,0.06357847]
[1736647795814,0.8239,3287.1,3286.6,3.33055824]
[1736647796081,0.8239,3287.1,3287.0,0.06346382]
[1736647796693,0.8239,3287.1,3286.7,2.12973]
[1736647796868,0.8239,3287.1,3287.0,0.06346382]
[1736647797179,6.2896,3287.2,3287.0,0.06347258]
[1736647797382,6.2896,3287.2,3286.8,2.91352]
[1736647797584,6.2896,3287.2,3287.1,0.06339742]
[1736647797785,6.91856,3287.2,3286.8,2.91352]
[1736647797989,6.2896,3287.2,3287.1,0.06339742]
[1736647798289,6.2896,3287.2,3286.8,2.91352]
[1736647798887,6.2896,3287.2,3286.9,0.06354775]
[1736647802140,0.8028,3287.1,3286.6,4.12182824]
[1736647802338,0.8028,3287.1,3286.7,0.06369811]
[1736647803487,0.8028,3287.1,3286.7,0.09412039]
[1736647804290,0.8028,3287.1,3286.7,2.22390039]
[1736647804587,6.0816,3287.2,3287.0,2.12958]
[1736647804759,6.0816,3287.2,3287.0,3.33030824]
[1736647805091,6.0816,3287.2,3287.1,0.06339742]
[1736647808195,6.8844,3287.2,3286.8,5.37]
[1736647808486,6.8844,3287.2,3287.1,0.06334922]
[1736647808651,7.59364,3287.2,3286.8,5.37]
[1736647808853,7.59364,3287.2,3287.1,0.06327469]
[1736647809058,7.59364,3287.2,3286.8,5.37]
[1736647809255,7.59364,3287.2,3287.1,0.06327469]
[1736647809439,7.59364,3287.2,3286.8,5.37]
[1736647809639,7.59364,3287.2,3287.1,0.06327469]
[1736647809866,7.59364,3287.2,3286.8,5.37]
[1736647810069,7.59364,3287.2,3287.1,0.06327469]
[1736647810268,7.59364,3287.2,3286.8,5.37]
[1736647810488,7.59364,3287.2,3287.1,0.06327469]
[1736647810694,7.59364,3287.2,3286.8,5.37]
[1736647810886,7.59364,3287.2,3287.1,0.06327469]
[1736647811393,6.8844,3287.2,3286.8,5.37]
[1736647811558,7.0924,3287.2,3287.1,0.06327469]
[1736647811764,7.0924,3287.2,3286.8,7.49971]
[1736647811973,7.0924,3287.2,3287.1,0.06331414]
[1736647812175,7.0924,3287.2,3286.8,7.49971]
[1736647812379,7.0924,3287.2,3287.1,0.06331414]
[1736647812563,7.0924,3287.2,3286.8,7.49971]
[1736647812763,6.2896,3287.2,3287.1,0.06331414]
[1736647812983,6.2896,3287.2,3286.9,2.12966]
[1736647813185,6.2896,3287.2,3287.1,0.06331414]
[1736647813415,6.2896,3287.2,3287.0,0.06338931]
[1736647813695,6.2896,3287.2,3287.1,0.06331414]
[1736647814080,6.2896,3287.2,3286.9,2.12966]
[1736647814281,6.2896,3287.2,3287.1,0.06331414]
[1736647814768,6.2896,3287.2,3286.9,2.12966]
[1736647814969,6.2896,3287.2,3287.1,0.06331414]
[1736647815170,6.2896,3287.2,3287.0,0.06338931]
[1736647815499,6.2896,3287.2,3287.1,0.06331414]
[1736647815797,6.2896,3287.2,3286.9,2.12966]
[1736647816000,6.2896,3287.2,3287.1,0.06331414]
[1736647816183,6.2896,3287.2,3287.0,0.06338931]
[1736647816388,6.2896,3287.2,3287.1,0.06331414]
[1736647816773,6.2896,3287.2,3286.9,2.12966]
[1736647816960,6.2896,3287.2,3287.1,0.06331414]
[1736647817161,6.2896,3287.2,3287.0,0.06338931]
[1736647820602,6.0816,3287.2,3287.1,2.13703]
[1736647821065,6.0816,3287.2,3287.1,2.20034414]
[1736647823018,6.0816,3287.2,3287.1,3.40107238]
[1736647823309,6.0816,3287.2,3287.1,4.03523754]
[1736647823705,6.0816,3287.2,3287.1,10.18573754]
[1736647825804,6.0816,3287.2,3287.1,9.0000093]
[1736647831839,1.51083104,3287.2,3287.1,12.0075093]
[1736647832156,1.0287,3288.6,3288.4,2.12867]
[1736647832360,0.8207,3288.6,3288.5,0.09418087]
[1736647833161,0.208,3288.8,3288.5,2.22281087]
[1736647833327,0.208,3288.8,3288.5,2.25321674]
[1736647834113,0.8207,3288.9,3288.5,2.25321674]
[1736647835206,0.8207,3288.9,3288.5,2.22281087]
[1736647838662,0.8207,3288.9,3288.5,2.25321671]
[1736647840933,0.8207,3288.9,3288.5,2.22281087]
[1736647842462,1.0287,3288.9,3288.5,2.22281087]
[1736647842835,1.0287,3288.9,3288.5,2.25321671]
[1736647843164,1.0287,3288.9,3288.5,2.22281087]
[1736647844264,1.0287,3288.9,3288.5,2.25321671]
[1736647846165,0.208,3288.9,3288.6,0.0075]
[1736647846468,0.208,3288.9,3288.7,0.91296343]
[1736647846921,0.208,3288.9,3288.7,0.94336685]
[1736647847372,0.208,3289.1,3288.7,0.94336685]
[1736647847522,0.208,3289.1,3288.8,2.12843]
[1736647847718,0.208,3289.1,3288.9,0.0933113]
[1736647848775,0.8291,3289.2,3288.6,2.8063215]
[1736647848925,0.208,3289.1,3288.7,0.09346343]
[1736647849845,0.8291,3289.2,3288.7,0.09346343]
[1736647850073,0.208,3289.0,3288.7,0.09346343]
[1736647853366,0.208,3289.0,3288.8,0.0933129]
[1736647853574,0.208,3289.0,3288.4,9.51890824]
[1736647853725,0.208,3289.0,3288.5,0.0935411]
[1736647855150,0.8291,3288.9,3288.5,0.0935411]
[1736647862441,0.8291,3288.9,3288.3,2.15915771]
[1736647862609,0.8291,3288.9,3288.6,0.09306193]
[1736647862807,0.8291,3288.9,3288.3,2.15915771]
[1736647863109,0.8291,3288.9,3288.7,0.09298586]
[1736647863305,0.8291,3288.9,3288.3,2.15915771]
[1736647863464,0.8291,3288.9,3288.8,0.09290979]
[1736647863661,0.8291,3288.9,3288.4,2.12869]
[1736647863884,0.8291,3288.9,3288.8,0.09296236]
[1736647864098,0.8291,3288.9,3288.4,2.12869]
[1736647864295,0.8291,3288.9,3288.8,0.09296236]
[1736647864495,0.8291,3288.9,3288.4,2.12869]
[1736647865216,0.8291,3288.9,3288.5,2.22181056]
[1736647877439,0.55,3288.8,3288.5,0.09319056]
[1736647877641,0.55,3288.6,3288.2,5.37]
[1736647877927,0.55,3288.6,3287.5,0.8152]
[1736647877928,0.55,3288.4,3287.5,7.49925]
[1736647878137,1.0273,3288.3,3287.5,7.49925]
[1736647880772,1.0273,3288.3,3287.5,8.69997824]
[1736647881751,1.0273,3288.3,3287.5,7.49925]
[1736647881890,0.8193,3288.2,3287.5,5.37]
[1736647882091,0.8193,3288.1,3287.5,5.37]
[1736647882723,0.8193,3288.1,3287.1,7.49952]
[1736647882994,0.8193,3287.9,3287.1,5.37]
[1736647883922,0.8193,3287.8,3287.1,5.37]
[1736647884237,0.8193,3287.6,3286.9,2.12961]
[1736647884438,0.208,3287.5,3286.9,2.12961]
[1736647884651,0.8193,3287.4,3286.9,2.12961]
[1736647887216,0.8193,3287.4,3286.8,1.20072824]
[1736647888414,0.8193,3287.4,3286.7,2.12977]
[1736647888928,0.8193,3287.4,3286.8,0.09495781]
[1736647893240,0.8193,3287.4,3286.8,3.42538605]
[1736647893445,0.8193,3287.4,3286.8,3.33042824]
[1736647893645,0.8193,3287.4,3286.9,0.09488165]
[1736647894014,0.208,3287.3,3286.9,2.22449165]
[1736647894218,0.208,3287.3,3286.9,2.57005589]
[1736647894743,0.208,3287.3,3287.0,1.20072824]
[1736647894902,0.208,3287.3,3287.0,3.33031824]
[1736647895101,0.208,3287.3,3287.1,0.09472936]
[1736647897260,0.208,3287.8,3287.4,2.12934]
[1736647897406,0.8193,3288.0,3287.6,1.20072824]
[1736647897606,0.208,3288.2,3287.8,2.12906]
[1736647897837,0.208,3288.2,3287.9,0.09466371]
[1736647900045,0.208,3288.2,3287.6,2.1292]
[1736647900271,0.208,3288.2,3288.0,0.09457884]
[1736647900439,0.208,3288.2,3287.6,2.1292]
[1736647900842,0.208,3288.2,3287.6,2.91317068]
[1736647901089,0.208,3288.2,3287.7,0.09462308]
[1736647904138,0.7597,3288.1,3287.4,7.83981682]
[1736647904470,0.7597,3288.1,3287.4,7.83231682]
[1736647904653,0.7597,3288.1,3287.5,0.0947797]
[1736647908405,0.7597,3288.1,3287.5,0.96642935]
[1736647908707,0.7597,3288.1,3287.5,0.0947797]
[1736647913082,0.7597,3288.1,3287.5,2.2240497]
[1736647925836,0.7597,3288.1,3287.5,0.0947797]
[1736647926304,0.209,3288.0,3287.5,0.0947797]
[1736647927841,0.7635,3287.9,3287.5,0.0947797]
[1736647928710,1.20110539,3287.8,3287.5,0.0947797]
[1736647928913,0.7635,3287.6,3286.8,5.37]
[1736647929445,0.7635,3287.6,3286.8,5.40042158]
[1736647929599,0.7635,3287.6,3286.8,7.53012158]
[1736647929800,0.7635,3287.6,3286.8,7.4997]
[1736647930731,0.7635,3287.6,3286.9,2.12966]
[1736647933566,0.7635,3287.6,3287.0,0.0950464]
[1736647940350,0.75342402,3287.6,3287.0,0.0950464]
[1736647941285,0.428008,3287.6,3287.0,0.0950464]
[1736647943383,0.8189,3287.5,3287.0,0.0950464]
[1736647945140,0.208,3287.4,3287.0,0.0950464]
[1736647951301,0.208,3287.4,3287.0,2.2246364]
[1736647951620,0.208,3287.4,3287.0,0.0950464]
[1736647951912,0.208,3287.6,3287.1,1.23152605]
[1736647952109,0.208,3287.6,3287.4,2.12933]
[1736647952483,0.8265,3288.1,3287.4,2.12933]
[1736647952831,0.208,3287.7,3287.5,0.095069]
[1736647953388,1.0345,3287.7,3287.5,0.095069]
[1736647955684,1.0345,3287.7,3287.2,8.31333]
[1736647955904,1.0345,3287.7,3287.3,0.09517303]
[1736647956106,1.0345,3287.7,3287.2,9.53268522]
[1736647956375,1.0345,3287.7,3287.4,0.0950969]
[1736647956715,1.0345,3287.7,3287.5,0.09502078]
[1736647956923,1.0345,3287.7,3287.2,9.53268522]
[1736647957121,1.0345,3287.7,3287.6,0.09494466]
[1736647957351,1.0345,3287.7,3287.2,8.31333]
[1736647957547,1.0345,3287.7,3287.6,0.09487451]
[1736647957738,1.0345,3287.7,3287.2,8.31333]
[1736647957938,1.0345,3287.7,3287.6,0.09487451]
[1736647958139,1.0345,3287.7,3287.2,8.31333]
[1736647958336,1.0345,3287.7,3287.6,0.09487451]
[1736647958556,1.0345,3287.7,3287.2,8.31333]
[1736647958752,1.0345,3287.7,3287.6,0.09487451]
[1736647958956,1.0345,3287.7,3287.2,8.31333]
[1736647959122,1.0345,3287.7,3287.6,0.09487451]
[1736647959321,1.0345,3287.7,3287.2,8.31333]
[1736647959524,1.0345,3287.7,3287.6,0.09487451]
[1736647959828,1.0345,3287.7,3287.2,8.31333]
[1736647960043,1.0345,3287.7,3287.6,0.09487451]
[1736647960242,1.0345,3287.7,3287.2,8.31333]
[1736647960439,1.0345,3287.7,3287.6,0.09487451]
[1736647960647,1.0345,3287.7,3287.2,8.31333]
[1736647961177,1.0345,3287.7,3287.3,0.09510288]
[1736647961380,1.0345,3287.7,3287.2,8.31333]
[1736647961582,1.0345,3287.7,3287.4,0.09502675]
[1736647961726,1.0345,3287.7,3287.2,8.31333]
[1736647961927,1.0345,3287.7,3287.5,0.09495063]
[1736647962131,1.0345,3287.7,3287.2,8.31333]
[1736647962328,1.0345,3287.7,3287.6,0.09487451]
[1736647962572,1.0345,3287.7,3287.2,8.31333]
[1736647962742,1.0345,3287.7,3287.6,0.09487451]
[1736647963064,1.0345,3287.7,3287.2,8.31333]
[1736647963278,1.0345,3287.7,3287.6,0.09487451]
[1736647963430,1.0345,3287.7,3287.2,9.26477354]
[1736647963431,1.0345,3287.7,3287.2,6.1839]
[1736647963623,1.0345,3287.7,3287.6,0.09487451]
[1736647963822,1.0345,3287.7,3287.2,5.37]
[1736647964379,1.0345,3287.7,3287.3,0.09510288]
[1736647964530,1.0345,3287.7,3287.2,5.37]
[1736647964872,1.0345,3287.7,3287.4,0.09500484]
[1736647965181,1.0345,3287.7,3287.5,0.09492871]
[1736647965381,1.0345,3287.7,3287.2,5.37]
[1736647965672,1.0345,3287.7,3287.6,0.09485259]
[1736647965842,1.0345,3287.7,3287.2,6.200093]
[1736647965843,1.0345,3287.7,3287.2,5.37]
[1736647966043,1.0345,3287.7,3287.6,0.09485259]
[1736647966247,1.0345,3287.7,3287.2,5.37]
[1736647966438,1.0345,3287.7,3287.6,0.09485259]
[1736647966685,1.0345,3287.7,3287.2,5.37]
[1736647967174,1.0345,3287.7,3287.3,0.09508097]
[1736647967379,1.0345,3287.7,3287.2,5.37]
[1736647967670,1.0345,3287.7,3287.4,0.09500484]
[1736647967873,1.0345,3287.7,3287.3,0.09508097]
[1736647968077,1.0345,3287.7,3287.5,0.09492871]
[1736647968243,1.0345,3287.7,3287.4,0.09500484]
[1736647968443,0.31636,3287.6,3287.2,5.37]
[1736647968677,1.0345,3287.7,3287.2,5.37]
[1736647969571,1.0345,3287.7,3287.0,2.12959]
[1736647970032,1.0345,3287.7,3286.8,9.50220539]
[1736647972987,1.0345,3287.7,3286.9,2.12966]
[1736647976606,1.0345,3287.7,3287.0,2.12958]
[1736647978261,1.0345,3287.7,3287.1,2.12953]
[1736647978701,1.0345,3287.7,3287.2,0.0951615]
[1736647981615,0.8265,3287.7,3287.3,2.1294]
[1736647981795,0.208,3287.7,3287.4,2.12932]
[1736647981983,0.208,3287.7,3287.4,2.22437307]
[1736647982166,0.7536,3287.9,3287.4,2.22437307]
[1736647982373,0.208,3287.8,3287.4,2.22437307]
[1736647984327,0.7536,3288.5,3287.6,1.20110539]
[1736647984624,0.208,3288.4,3287.6,1.20110539]
[1736647984926,0.208,3288.4,3287.7,0.0947239]
[1736647985808,0.7752,3288.3,3287.7,0.0947239]
[1736647986125,0.7752,3288.3,3287.5,2.12926]
[1736647986309,1.56713042,3288.3,3287.8,0.09464779]
[1736647986623,1.56713042,3288.3,3287.5,2.12926]
[1736647986855,0.79193042,3288.3,3287.9,0.09457168]
[1736647986982,0.7752,3288.2,3287.4,1.20110539]
[1736647987183,0.7752,3288.2,3288.0,0.09449558]
[1736647987385,0.15671304,3288.1,3287.4,1.20110539]
[1736647987695,0.7752,3288.2,3287.4,3.33043539]
[1736647988093,0.7752,3288.2,3287.5,0.09487613]
[1736647996327,0.7752,3288.2,3287.3,6.1474]
[1736647996827,0.7752,3288.2,3287.4,0.09479883]
[1736648001139,1.20110539,3288.3,3287.4,0.09479883]
[1736648001140,2.12893,3288.1,3287.4,0.09479883]
[1736648001299,1.038093,3288.0,3287.4,0.09479883]
[1736648001493,0.8252,3287.9,3287.4,0.09479883]
[1736648001812,0.8252,3287.9,3287.3,5.37]
[1736648002015,0.8252,3287.9,3287.5,0.09473585]
[1736648002221,0.8252,3287.9,3287.3,5.37]